fUST/lending_fUST_20260523
["ID","MTS","AMOUNT","RATE_DAILY","PERIOD"]
[422835514,1779498551000,-300.0,7.37e-05,2]
[422835513,1779498551000,-300.0,7.37e-05,2]
[422835511,1779498551000,-300.0,7.37e-05,2]
[422835512,1779498551000,-300.0,7.37e-05,2]
[422835516,1779498551000,-300.0,7.37e-05,2]
[422835508,1779498551000,-195.5492779,7.226e-05,2]
[422835596,1779498632000,-250.55159251,7.818e-05,2]
[422835582,1779498632000,-365.05,7.818e-05,2]
[422835580,1779498632000,-300.0,7.817e-05,2]
[422835798,1779498638000,-756.81431939,7.818e-05,2]
[422835902,1779498640000,-1219.91665635,7.818e-05,2]
[422835901,1779498640000,-295.73937491,7.818e-05,2]
[422835916,1779498643000,-304.0,7.818e-05,2]
[422835915,1779498643000,-7728.27832075,7.818e-05,2]
[422835924,1779498646000,-842.0,7.718e-05,2]
[422835925,1779498646000,-5824.62473304,7.718e-05,2]
[422835926,1779498647000,-10971.5359287,7.718e-05,2]
[422835946,1779498755000,-300.0,7.717e-05,2]
[422835947,1779498769000,-2167.86699695,7.718e-05,2]
[422835948,1779498769000,-2258.92618905,7.718e-05,2]
[422835950,1779498887000,152.0,6.833e-05,30]
[422835953,1779498974000,-3203.7268858,7.691e-05,2]
[422835955,1779499032000,-249.2191142,7.718e-05,2]
[422835968,1779499535000,-202.66548086,7.657e-05,2]
[422835998,1779499832000,-411.94375545,7.657e-05,2]
[422836044,1779499838000,-716.57794149,7.657e-05,2]
[422836049,1779499838000,-1200.0,7.972e-05,2]
[422836057,1779499838000,-92.08729584,7.973e-05,2]
[422836055,1779499838000,-300.0,7.973e-05,2]
[422836051,1779499838000,-300.0,7.972e-05,2]
[422836046,1779499838000,-173.70128651,7.726e-05,2]
[422836053,1779499838000,-300.0,7.973e-05,2]
[422836047,1779499838000,-413.52952646,7.757e-05,2]
[422836107,1779499841000,-300.0,7.973e-05,2]
[422836108,1779499841000,-298.47244553,7.973e-05,2]
[422836105,1779499841000,-207.91270416,7.973e-05,2]
[422836106,1779499841000,-300.0,7.973e-05,2]
[422836144,1779499847000,-229.23262052,7.973e-05,2]
[422836146,1779499847000,-300.0,7.973e-05,2]
[422836145,1779499847000,-70.76737948,7.973e-05,2]
[422836147,1779499847000,-99.24023469,7.973e-05,2]
[422836143,1779499847000,-1.52755447,7.973e-05,2]
[422836175,1779500833000,-229.27019702,7.72e-05,2]
[422836179,1779500967000,151.0,7.488e-05,2]
[422836180,1779501027000,151.0,7.488e-05,2]
[422836400,1779501041000,-500.0,8.219e-05,2]
[422836392,1779501041000,-500.0,8.218e-05,2]
[422836385,1779501041000,-500.0,8.218e-05,2]
[422836386,1779501041000,-500.0,8.218e-05,2]
[422836382,1779501041000,-500.0,8.218e-05,2]
[422836389,1779501041000,-453.86183158,8.218e-05,2]
[422836383,1779501041000,-500.0,8.218e-05,2]
[422836384,1779501041000,-500.0,8.218e-05,2]
[422836378,1779501041000,-162.61845137,8.214e-05,2]
[422836387,1779501041000,-500.0,8.218e-05,2]
[422836388,1779501041000,-502.61636425,8.218e-05,2]
[422836381,1779501041000,-500.0,8.218e-05,2]
[422836380,1779501041000,-500.0,8.218e-05,2]
[422836390,1779501041000,-500.0,8.218e-05,2]
[422836376,1779501041000,-300.0,8.213e-05,2]
[422836369,1779501041000,-1041.7570263,8.019e-05,2]
[422836374,1779501041000,-160.0,8.077e-05,2]
[422836372,1779501041000,-161.72364698,8.076e-05,2]
[422836377,1779501041000,-5528.43667389,8.214e-05,2]
[422836368,1779501041000,-882.14214703,8.019e-05,2]
[422836370,1779501041000,-185.53,8.055e-05,2]
[422836398,1779501041000,-2367.2107,8.219e-05,2]
[422836367,1779501041000,-500.0,8.007e-05,2]
[422836365,1779501041000,-417.80103652,7.86e-05,2]
[422836371,1779501041000,-160.0,8.076e-05,2]
[422836366,1779501041000,-161.07,8e-05,2]
[422836373,1779501041000,-766.56709688,8.077e-05,2]
[422836364,1779501041000,-713.09111808,7.72e-05,2]
[422836379,1779501041000,-500.0,8.218e-05,2]
[422836397,1779501041000,-634.65647797,8.218e-05,2]
[422836375,1779501041000,-300.0,8.213e-05,2]
[422836396,1779501041000,-500.0,8.218e-05,2]
[422836422,1779501041000,-500.0,8.219e-05,2]
[422836402,1779501041000,-673.62,8.219e-05,2]
[422836417,1779501041000,-803.32,8.219e-05,2]
[422836426,1779501041000,-307.26374659,8.219e-05,2]
[422836421,1779501041000,-500.0,8.219e-05,2]
[422836411,1779501041000,-500.0,8.219e-05,2]
[422836410,1779501041000,-500.0,8.219e-05,2]
[422836416,1779501041000,-500.0,8.219e-05,2]
[422836425,1779501041000,-765.83,8.219e-05,2]
[422836409,1779501041000,-500.0,8.219e-05,2]
[422836412,1779501041000,-500.0,8.219e-05,2]
[422836408,1779501041000,-500.0,8.219e-05,2]
[422836413,1779501041000,-500.0,8.219e-05,2]
[422836406,1779501041000,-500.0,8.219e-05,2]
[422836418,1779501041000,-1105.62,8.219e-05,2]
[422836407,1779501041000,-500.0,8.219e-05,2]
[422836419,1779501041000,-500.0,8.219e-05,2]
[422836423,1779501041000,-2034.7,8.219e-05,2]
[422836391,1779501041000,-249.71161589,8.218e-05,2]
[422836399,1779501041000,-500.0,8.219e-05,2]
[422836393,1779501041000,-549.50925425,8.218e-05,2]
[422836394,1779501041000,-500.0,8.218e-05,2]
[422836403,1779501041000,-348.63062057,8.219e-05,2]
[422836401,1779501041000,-500.0,8.219e-05,2]
[422836424,1779501041000,-844.13,8.219e-05,2]
[422836420,1779501041000,-500.0,8.219e-05,2]
[422836415,1779501041000,-500.0,8.219e-05,2]
[422836414,1779501041000,-219.87297524,8.219e-05,2]
[422836395,1779501041000,-500.0,8.218e-05,2]
[422836405,1779501041000,-500.0,8.219e-05,2]
[422836404,1779501041000,-500.0,8.219e-05,2]
[422836471,1779501044000,-1728.92,8.219e-05,2]
[422836468,1779501044000,-500.0,8.219e-05,2]
[422836473,1779501044000,-500.0,8.219e-05,2]
[422836467,1779501044000,-646.23,8.219e-05,2]
[422836477,1779501044000,-500.0,8.219e-05,2]
[422836476,1779501044000,-500.0,8.219e-05,2]
[422836488,1779501044000,-500.0,8.219e-05,2]
[422836484,1779501044000,-538.17,8.219e-05,2]
[422836487,1779501044000,-1643.33,8.219e-05,2]
[422836481,1779501044000,-500.0,8.219e-05,2]
[422836464,1779501044000,-500.0,8.219e-05,2]
[422836475,1779501044000,-500.0,8.219e-05,2]
[422836482,1779501044000,-500.0,8.219e-05,2]
[422836478,1779501044000,-309.77777037,8.219e-05,2]
[422836479,1779501044000,-500.0,8.219e-05,2]
[422836483,1779501044000,-531.6670983,8.219e-05,2]
[422836480,1779501044000,-504.97444778,8.219e-05,2]
[422836485,1779501044000,-500.0,8.219e-05,2]
[422836490,1779501044000,-500.0,8.219e-05,2]
[422836497,1779501044000,-1327.63,8.219e-05,2]
[422836489,1779501044000,-779.8,8.219e-05,2]
[422836493,1779501044000,-895.98,8.219e-05,2]
[422836491,1779501044000,-1790.29,8.219e-05,2]
[422836469,1779501044000,-844.03,8.219e-05,2]
[422836492,1779501044000,-940.22,8.219e-05,2]
[422836486,1779501044000,-151.32848979,8.219e-05,2]
[422836461,1779501044000,-500.0,8.219e-05,2]
[422836451,1779501044000,-500.0,8.219e-05,2]
[422836462,1779501044000,-500.0,8.219e-05,2]
[422836494,1779501044000,-500.0,8.219e-05,2]
[422836440,1779501044000,-408.00192357,8.219e-05,2]
[422836445,1779501044000,-1000.0,8.219e-05,2]
[422836444,1779501044000,-500.0,8.219e-05,2]
[422836442,1779501044000,-1236.88,8.219e-05,2]
[422836443,1779501044000,-219.28526693,8.219e-05,2]
[422836441,1779501044000,-51.79432984,8.219e-05,2]
[422836447,1779501044000,-500.0,8.219e-05,2]
[422836446,1779501044000,-500.0,8.219e-05,2]
[422836448,1779501044000,-500.0,8.219e-05,2]
[422836452,1779501044000,-652.28,8.219e-05,2]
[422836449,1779501044000,-500.0,8.219e-05,2]
[422836454,1779501044000,-500.0,8.219e-05,2]
[422836453,1779501044000,-2012.941,8.219e-05,2]
[422836456,1779501044000,-1632.43,8.219e-05,2]
[422836457,1779501044000,-724.32,8.219e-05,2]
[422836455,1779501044000,-580.67,8.219e-05,2]
[422836459,1779501044000,-1120.75,8.219e-05,2]
[422836460,1779501044000,-500.0,8.219e-05,2]
[422836458,1779501044000,-500.0,8.219e-05,2]
[422836470,1779501044000,-500.0,8.219e-05,2]
[422836463,1779501044000,-500.0,8.219e-05,2]
[422836466,1779501044000,-683.1,8.219e-05,2]
[422836474,1779501044000,-553.2,8.219e-05,2]
[422836465,1779501044000,-500.0,8.219e-05,2]
[422836472,1779501044000,-500.0,8.219e-05,2]
[422836496,1779501044000,-611.62,8.219e-05,2]
[422836450,1779501044000,-500.0,8.219e-05,2]
[422836499,1779501044000,-500.0,8.219e-05,2]
[422836528,1779501044000,-570.96,8.219e-05,2]
[422836535,1779501044000,-500.0,8.219e-05,2]
[422836538,1779501044000,-500.0,8.219e-05,2]
[422836530,1779501044000,-500.0,8.219e-05,2]
[422836534,1779501044000,-3750.71,8.219e-05,2]
[422836527,1779501044000,-1987.86,8.219e-05,2]
[422836529,1779501044000,-500.0,8.219e-05,2]
[422836531,1779501044000,-500.0,8.219e-05,2]
[422836533,1779501044000,-500.0,8.219e-05,2]
[422836537,1779501044000,-526.67,8.219e-05,2]
[422836546,1779501044000,-921.08,8.219e-05,2]
[422836540,1779501044000,-556.42,8.219e-05,2]
[422836526,1779501044000,-1273.58,8.219e-05,2]
[422836544,1779501044000,-760.95,8.219e-05,2]
[422836543,1779501044000,-863.23,8.219e-05,2]
[422836549,1779501044000,-589.67511182,8.219e-05,2]
[422836550,1779501044000,-578.83,8.219e-05,2]
[422836539,1779501044000,-924.69,8.219e-05,2]
[422836541,1779501044000,-568.23,8.219e-05,2]
[422836551,1779501044000,-500.0,8.219e-05,2]
[422836542,1779501044000,-500.0,8.219e-05,2]
[422836548,1779501044000,-500.0,8.219e-05,2]
[422836553,1779501044000,-500.0,8.219e-05,2]
[422836554,1779501044000,-500.0,8.219e-05,2]
[422836552,1779501044000,-994.47,8.219e-05,2]
[422836495,1779501044000,-500.0,8.219e-05,2]
[422836547,1779501044000,-500.0,8.219e-05,2]
[422836536,1779501044000,-690.95,8.219e-05,2]
[422836545,1779501044000,-500.0,8.219e-05,2]
[422836525,1779501044000,-976.02,8.219e-05,2]
[422836509,1779501044000,-2061.77,8.219e-05,2]
[422836498,1779501044000,-500.0,8.219e-05,2]
[422836501,1779501044000,-500.0,8.219e-05,2]
[422836508,1779501044000,-500.0,8.219e-05,2]
[422836503,1779501044000,-501.44,8.219e-05,2]
[422836524,1779501044000,-500.0,8.219e-05,2]
[422836511,1779501044000,-500.0,8.219e-05,2]
[422836514,1779501044000,-589.22,8.219e-05,2]
[422836516,1779501044000,-2198.64,8.219e-05,2]
[422836505,1779501044000,-500.0,8.219e-05,2]
[422836502,1779501044000,-500.0,8.219e-05,2]
[422836504,1779501044000,-500.0,8.219e-05,2]
[422836500,1779501044000,-1095.0348,8.219e-05,2]
[422836521,1779501044000,-500.0,8.219e-05,2]
[422836517,1779501044000,-500.0,8.219e-05,2]
[422836520,1779501044000,-501.27064347,8.219e-05,2]
[422836512,1779501044000,-1071.84,8.219e-05,2]
[422836519,1779501044000,-500.0,8.219e-05,2]
[422836507,1779501044000,-500.0,8.219e-05,2]
[422836523,1779501044000,-4152.89,8.219e-05,2]
[422836510,1779501044000,-500.0,8.219e-05,2]
[422836513,1779501044000,-500.0,8.219e-05,2]
[422836518,1779501044000,-238.15159637,8.219e-05,2]
[422836506,1779501044000,-1447.78,8.219e-05,2]
[422836515,1779501044000,-1197.35,8.219e-05,2]
[422836522,1779501044000,-500.0,8.219e-05,2]
[422836532,1779501044000,-668.96,8.219e-05,2]
[422836555,1779501045000,-1007.98,8.219e-05,2]
[422836558,1779501045000,-363.32009237,8.219e-05,2]
[422836557,1779501045000,-2382.52,8.219e-05,2]
[422836556,1779501045000,-821.87,8.219e-05,2]
[422836603,1779501050000,-500.0,8.219e-05,2]
[422836594,1779501050000,-443.1408411,8.219e-05,2]
[422836588,1779501050000,-500.0,8.219e-05,2]
[422836587,1779501050000,-500.0,8.219e-05,2]
[422836586,1779501050000,-500.0,8.219e-05,2]
[422836585,1779501050000,-512.35,8.219e-05,2]
[422836581,1779501050000,-500.0,8.219e-05,2]
[422836584,1779501050000,-500.0,8.219e-05,2]
[422836583,1779501050000,-573.76,8.219e-05,2]
[422836592,1779501050000,-500.0,8.219e-05,2]
[422836591,1779501050000,-636.92,8.219e-05,2]
[422836590,1779501050000,-500.0,8.219e-05,2]
[422836589,1779501050000,-501.37595285,8.219e-05,2]
[422836580,1779501050000,-500.0,8.219e-05,2]
[422836576,1779501050000,-604.16840621,8.219e-05,2]
[422836574,1779501050000,-786.41,8.219e-05,2]
[422836577,1779501050000,-500.0,8.219e-05,2]
[422836578,1779501050000,-742.27,8.219e-05,2]
[422836601,1779501050000,-6184.24,8.219e-05,2]
[422836573,1779501050000,-811.93,8.219e-05,2]
[422836571,1779501050000,-500.0,8.219e-05,2]
[422836572,1779501050000,-1361.94,8.219e-05,2]
[422836569,1779501050000,-593.59990763,8.219e-05,2]
[422836579,1779501050000,-603.47,8.219e-05,2]
[422836575,1779501050000,-651.05,8.219e-05,2]
[422836582,1779501050000,-1104.5,8.219e-05,2]
[422836599,1779501050000,-500.0,8.219e-05,2]
[422836570,1779501050000,-500.0,8.219e-05,2]
[422836604,1779501050000,-554.9,8.219e-05,2]
[422836593,1779501050000,-500.0,8.219e-05,2]
[422836624,1779501050000,-500.0,8.219e-05,2]
[422836623,1779501050000,-1281.96,8.219e-05,2]
[422836620,1779501050000,-500.0,8.219e-05,2]
[422836622,1779501050000,-500.0,8.219e-05,2]
[422836625,1779501050000,-468.44543521,8.219e-05,2]
[422836618,1779501050000,-892.2,8.219e-05,2]
[422836619,1779501050000,-998.73,8.219e-05,2]
[422836612,1779501050000,-500.0,8.219e-05,2]
[422836614,1779501050000,-2616.4,8.219e-05,2]
[422836613,1779501050000,-1212.97,8.219e-05,2]
[422836607,1779501050000,-500.0,8.219e-05,2]
[422836605,1779501050000,-500.0,8.219e-05,2]
[422836621,1779501050000,-500.0,8.219e-05,2]
[422836610,1779501050000,-500.0,8.219e-05,2]
[422836615,1779501050000,-500.0,8.219e-05,2]
[422836609,1779501050000,-500.0,8.219e-05,2]
[422836608,1779501050000,-500.0,8.219e-05,2]
[422836616,1779501050000,-500.0,8.219e-05,2]
[422836611,1779501050000,-500.0,8.219e-05,2]
[422836606,1779501050000,-861.03,8.219e-05,2]
[422836602,1779501050000,-500.0,8.219e-05,2]
[422836600,1779501050000,-500.0,8.219e-05,2]
[422836598,1779501050000,-500.0,8.219e-05,2]
[422836597,1779501050000,-694.62,8.219e-05,2]
[422836596,1779501050000,-500.0,8.219e-05,2]
[422836595,1779501050000,-56.8591589,8.219e-05,2]
[422836617,1779501050000,-500.0,8.219e-05,2]
[422836653,1779502038000,160.0,7.699e-05,5]
[422836655,1779502038000,160.0,7.291e-05,3]
[422836654,1779502038000,160.0,7.495e-05,4]
[422836837,1779502241000,-500.0,8.218e-05,2]
[422836839,1779502241000,-500.0,8.218e-05,2]
[422836850,1779502241000,-500.0,8.219e-05,2]
[422836851,1779502241000,-500.0,8.219e-05,2]
[422836852,1779502241000,-500.0,8.219e-05,2]
[422836853,1779502241000,-586.13,8.219e-05,2]
[422836855,1779502241000,-500.0,8.219e-05,2]
[422836841,1779502241000,-500.0,8.218e-05,2]
[422836854,1779502241000,-515.74,8.219e-05,2]
[422836848,1779502241000,-500.0,8.219e-05,2]
[422836847,1779502241000,-1595.32,8.219e-05,2]
[422836843,1779502241000,-1742.1603,8.219e-05,2]
[422836835,1779502241000,-500.0,8.218e-05,2]
[422836857,1779502241000,-500.0,8.219e-05,2]
[422836833,1779502241000,-500.0,8.218e-05,2]
[422836802,1779502241000,-500.0,7.808e-05,2]
[422836827,1779502241000,-500.0,8.218e-05,2]
[422836826,1779502241000,-270.88794288,8.213e-05,2]
[422836824,1779502241000,-166.805,8.213e-05,2]
[422836831,1779502241000,-500.0,8.218e-05,2]
[422836822,1779502241000,-333.66903935,8.19e-05,2]
[422836820,1779502241000,-250.0,8.19e-05,2]
[422836818,1779502241000,-160.0,8.109e-05,2]
[422836812,1779502241000,-160.0,8.078e-05,2]
[422836816,1779502241000,-766.56709688,8.109e-05,2]
[422836814,1779502241000,-185.0,8.079e-05,2]
[422836810,1779502241000,-409.44501579,8.017e-05,2]
[422836804,1779502241000,-143.78105749,7.902e-05,6]
[422836808,1779502241000,-318.18665698,7.902e-05,5]
[422836806,1779502241000,-16.21894251,7.902e-05,6]
[422836829,1779502241000,-500.0,8.218e-05,2]
[422836858,1779502241000,-1736.52,8.219e-05,2]
[422836845,1779502241000,-619.31,8.219e-05,2]
[422836872,1779502241000,-500.0,8.219e-05,2]
[422836892,1779502241000,-500.0,8.219e-05,2]
[422836896,1779502241000,-500.0,8.219e-05,2]
[422836894,1779502241000,-500.0,8.219e-05,2]
[422836907,1779502241000,-500.0,8.219e-05,2]
[422836909,1779502241000,-903.54,8.219e-05,2]
[422836912,1779502241000,-500.0,8.219e-05,2]
[422836905,1779502241000,-533.23,8.219e-05,2]
[422836914,1779502241000,-578.32,8.219e-05,2]
[422836916,1779502241000,-500.0,8.219e-05,2]
[422836918,1779502241000,-579.0,8.219e-05,2]
[422836920,1779502241000,-500.0,8.219e-05,2]
[422836924,1779502241000,-1079.31,8.219e-05,2]
[422836926,1779502241000,-653.13479756,8.219e-05,2]
[422836860,1779502241000,-921.88,8.219e-05,2]
[422836922,1779502241000,-500.0,8.219e-05,2]
[422836903,1779502241000,-500.0,8.219e-05,2]
[422836910,1779502241000,-554.71,8.219e-05,2]
[422836900,1779502241000,-500.0,8.219e-05,2]
[422836864,1779502241000,-564.67,8.219e-05,2]
[422836888,1779502241000,-500.0,8.219e-05,2]
[422836868,1779502241000,-500.0,8.219e-05,2]
[422836870,1779502241000,-500.0,8.219e-05,2]
[422836874,1779502241000,-500.0,8.219e-05,2]
[422836866,1779502241000,-500.0,8.219e-05,2]
[422836876,1779502241000,-1048.02,8.219e-05,2]
[422836862,1779502241000,-500.0,8.219e-05,2]
[422836878,1779502241000,-500.0,8.219e-05,2]
[422836884,1779502241000,-956.19,8.219e-05,2]
[422836882,1779502241000,-500.0,8.219e-05,2]
[422836898,1779502241000,-662.16,8.219e-05,2]
[422836886,1779502241000,-500.0,8.219e-05,2]
[422836890,1779502241000,-275.93573379,8.219e-05,2]
[422836880,1779502241000,-500.0,8.219e-05,2]
[422837299,1779502244000,-500.3473885,8.219e-05,2]
[422837296,1779502244000,-1996.76,8.219e-05,2]
[422837290,1779502244000,-500.0,8.219e-05,2]
[422837301,1779502244000,-500.0,8.219e-05,2]
[422837298,1779502244000,-500.0,8.219e-05,2]
[422837294,1779502244000,-500.0,8.219e-05,2]
[422837292,1779502244000,-500.0,8.219e-05,2]
[422837311,1779502244000,-1017.78,8.219e-05,2]
[422837305,1779502244000,-500.0,8.219e-05,2]
[422837318,1779502244000,-861.31,8.219e-05,2]
[422837322,1779502244000,-500.0,8.219e-05,2]
[422837320,1779502244000,-500.0,8.219e-05,2]
[422837324,1779502244000,-500.0,8.219e-05,2]
[422837286,1779502244000,-500.38406135,8.219e-05,2]
[422837303,1779502244000,-500.0,8.219e-05,2]
[422837288,1779502244000,-500.3768873,8.219e-05,2]
[422837249,1779502244000,-161.72364698,8.109e-05,2]
[422837282,1779502244000,-1408.29,8.219e-05,2]
[422837307,1779502244000,-500.0,8.219e-05,2]
[422837264,1779502244000,-1293.14,8.219e-05,2]
[422837262,1779502244000,-559.19,8.219e-05,2]
[422837266,1779502244000,-610.38,8.219e-05,2]
[422837268,1779502244000,-500.0,8.219e-05,2]
[422837272,1779502244000,-500.0,8.219e-05,2]
[422837251,1779502244000,-94.17520244,8.219e-05,2]
[422837270,1779502244000,-338.69890969,8.219e-05,2]
[422837257,1779502244000,-500.0,8.219e-05,2]
[422837256,1779502244000,-899.66,8.219e-05,2]
[422837274,1779502244000,-500.0,8.219e-05,2]
[422837253,1779502244000,-500.0,8.219e-05,2]
[422837260,1779502244000,-500.0,8.219e-05,2]
[422837276,1779502244000,-500.0,8.219e-05,2]
[422837278,1779502244000,-500.39477978,8.219e-05,2]
[422837284,1779502244000,-500.0,8.219e-05,2]
[422837315,1779502244000,-500.0,8.219e-05,2]
[422837280,1779502244000,-500.0,8.219e-05,2]
[422837309,1779502244000,-500.0,8.219e-05,2]
[422837365,1779502244000,-500.34389481,8.219e-05,2]
[422837364,1779502244000,-1168.3,8.219e-05,2]
[422837383,1779502244000,-44.7845302,8.219e-05,2]
[422837386,1779502244000,-500.0,8.219e-05,2]
[422837390,1779502244000,-640.73,8.219e-05,2]
[422837392,1779502244000,-500.0,8.219e-05,2]
[422837384,1779502244000,-455.2154698,8.219e-05,2]
[422837388,1779502244000,-454.35107236,8.219e-05,2]
[422837401,1779502244000,-500.0,8.219e-05,2]
[422837399,1779502244000,-641.09,8.219e-05,2]
[422837393,1779502244000,-500.0,8.219e-05,2]
[422837398,1779502244000,-1617.54,8.219e-05,2]
[422837396,1779502244000,-500.0,8.219e-05,2]
[422837403,1779502244000,-1241.34,8.219e-05,2]
[422837314,1779502244000,-500.0,8.219e-05,2]
[422837379,1779502244000,-415.3614129,8.219e-05,2]
[422837375,1779502244000,-193.00156465,8.219e-05,2]
[422837381,1779502244000,-547.17,8.219e-05,2]
[422837358,1779502244000,-713.14,8.219e-05,2]
[422837362,1779502244000,-500.0,8.219e-05,2]
[422837326,1779502244000,-500.53894263,8.219e-05,2]
[422837332,1779502244000,-500.0,8.219e-05,2]
[422837328,1779502244000,-500.0,8.219e-05,2]
[422837330,1779502244000,-500.0,8.219e-05,2]
[422837344,1779502244000,-559.21,8.219e-05,2]
[422837349,1779502244000,-500.0,8.219e-05,2]
[422837333,1779502244000,-2140.7,8.219e-05,2]
[422837340,1779502244000,-500.0,8.219e-05,2]
[422837351,1779502244000,-500.0,8.219e-05,2]
[422837335,1779502244000,-500.0,8.219e-05,2]
[422837353,1779502244000,-447.91272771,8.219e-05,2]
[422837405,1779502244000,-113.94224437,8.219e-05,2]
[422837355,1779502244000,-4013.49,8.219e-05,2]
[422837338,1779502244000,-832.41,8.219e-05,2]
[422837360,1779502244000,-1236.63,8.219e-05,2]
[422837449,1779502247000,-1195.47,8.219e-05,2]
[422837455,1779502247000,-986.81,8.219e-05,2]
[422837454,1779502247000,-500.0,8.219e-05,2]
[422837457,1779502247000,-848.1,8.219e-05,2]
[422837456,1779502247000,-544.56,8.219e-05,2]
[422837452,1779502247000,-500.0,8.219e-05,2]
[422837461,1779502247000,-1326.03,8.219e-05,2]
[422837453,1779502247000,-937.89,8.219e-05,2]
[422837463,1779502247000,-500.0,8.219e-05,2]
[422837468,1779502247000,-2304.9,8.219e-05,2]
[422837465,1779502247000,-500.0,8.219e-05,2]
[422837475,1779502247000,-659.43,8.219e-05,2]
[422837462,1779502247000,-500.0,8.219e-05,2]
[422837473,1779502247000,-778.1,8.219e-05,2]
[422837474,1779502247000,-500.0,8.219e-05,2]
[422837466,1779502247000,-1528.33,8.219e-05,2]
[422837470,1779502247000,-901.76,8.219e-05,2]
[422837469,1779502247000,-937.88,8.219e-05,2]
[422837450,1779502247000,-500.0,8.219e-05,2]
[422837464,1779502247000,-811.55,8.219e-05,2]
[422837458,1779502247000,-580.29,8.219e-05,2]
[422837444,1779502247000,-500.0,8.219e-05,2]
[422837459,1779502247000,-787.62,8.219e-05,2]
[422837431,1779502247000,-386.05775563,8.219e-05,2]
[422837432,1779502247000,-3645.22,8.219e-05,2]
[422837434,1779502247000,-500.0,8.219e-05,2]
[422837472,1779502247000,-150.82742309,8.219e-05,2]
[422837433,1779502247000,-500.0,8.219e-05,2]
[422837435,1779502247000,-504.72,8.219e-05,2]
[422837446,1779502247000,-500.0,8.219e-05,2]
[422837445,1779502247000,-500.0,8.219e-05,2]
[422837436,1779502247000,-2245.61,8.219e-05,2]
[422837438,1779502247000,-500.0,8.219e-05,2]
[422837439,1779502247000,-1926.84,8.219e-05,2]
[422837440,1779502247000,-500.0,8.219e-05,2]
[422837437,1779502247000,-500.0,8.219e-05,2]
[422837441,1779502247000,-906.99,8.219e-05,2]
[422837443,1779502247000,-729.24,8.219e-05,2]
[422837442,1779502247000,-500.0,8.219e-05,2]
[422837448,1779502247000,-500.0,8.219e-05,2]
[422837447,1779502247000,-500.0,8.219e-05,2]
[422837460,1779502247000,-500.0,8.219e-05,2]
[422837451,1779502247000,-620.64,8.219e-05,2]
[422837467,1779502247000,-711.35,8.219e-05,2]
[422837471,1779502247000,-1121.45,8.219e-05,2]
[422837487,1779502247000,-500.0,8.219e-05,2]
[422837504,1779502247000,-500.0,8.219e-05,2]
[422837500,1779502247000,-500.0,8.219e-05,2]
[422837506,1779502247000,-1970.76,8.219e-05,2]
[422837507,1779502247000,-645.55,8.219e-05,2]
[422837509,1779502247000,-500.0,8.219e-05,2]
[422837513,1779502247000,-500.0,8.219e-05,2]
[422837510,1779502247000,-1055.64,8.219e-05,2]
[422837511,1779502247000,-500.0,8.219e-05,2]
[422837518,1779502247000,-500.0,8.219e-05,2]
[422837494,1779502247000,-500.0,8.219e-05,2]
[422837512,1779502247000,-500.0,8.219e-05,2]
[422837508,1779502247000,-1080.39,8.219e-05,2]
[422837519,1779502247000,-2204.35,8.219e-05,2]
[422837517,1779502247000,-1249.37,8.219e-05,2]
[422837516,1779502247000,-500.0,8.219e-05,2]
[422837515,1779502247000,-621.11,8.219e-05,2]
[422837521,1779502247000,-500.0,8.219e-05,2]
[422837523,1779502247000,-808.96,8.219e-05,2]
[422837477,1779502247000,-623.93,8.219e-05,2]
[422837522,1779502247000,-6423.59,8.219e-05,2]
[422837514,1779502247000,-500.0,8.219e-05,2]
[422837493,1779502247000,-500.0,8.219e-05,2]
[422837520,1779502247000,-500.0,8.219e-05,2]
[422837496,1779502247000,-500.0,8.219e-05,2]
[422837478,1779502247000,-358.68922499,8.219e-05,2]
[422837479,1779502247000,-500.0,8.219e-05,2]
[422837489,1779502247000,-665.67,8.219e-05,2]
[422837481,1779502247000,-500.0,8.219e-05,2]